bitfinex/quotes_SOLUSD_20250209
["timestamp","ask_amount","ask_price","bid_price","bid_amount"]
[1739123174647,29.37731121,200.24,200.23,0.03]
[1739123174973,29.37731121,200.24,200.19,0.03]
[1739123174974,1.0,200.22,200.19,0.03]
[1739123177072,13.41184853,200.2,200.19,0.03]
[1739123177269,28.37731121,200.2,200.19,0.03]
[1739123178261,110.37731121,200.2,200.19,0.03]
[1739123178558,44.34277389,200.2,200.14,0.03]
[1739123178764,28.37731121,200.15,200.14,0.03]
[1739123179155,31.87461121,200.15,200.14,0.03]
[1739123180367,32.87461121,200.15,200.14,0.03]
[1739123180556,32.87461121,200.15,200.0,3.4998]
[1739123180557,1.0,200.13,200.0,14.96546268]
[1739123180758,14.96546268,200.06,199.98,14.96546268]
[1739123181067,28.37731121,200.06,199.99,14.96546268]
[1739123181876,31.87621121,200.06,199.99,14.96546268]
[1739123182368,13.41184853,200.06,200.0,14.96546268]
[1739123182572,18.46386268,200.1,200.03,14.96546268]
[1739123182798,14.96546268,200.12,200.05,14.99546268]
[1739123183083,14.96546268,200.12,200.06,14.96546268]
[1739123183588,14.96546268,200.13,200.06,14.96546268]
[1739123183757,14.96546268,200.15,200.08,14.96546268]
[1739123183961,14.96546268,200.18,200.11,14.96546268]
[1739123184176,99.46216268,200.19,200.12,14.96546268]
[1739123184370,14.96546268,200.18,200.11,14.96546268]
[1739123184587,14.96546268,200.18,200.06,3.4988]
[1739123184588,28.37731121,200.17,200.1,14.96546268]
[1739123184978,14.96546268,200.12,200.05,16.54386268]
[1739123185302,14.96546268,200.11,200.05,1.5784]
[1739123185592,14.96546268,200.09,200.05,0.03]
[1739123186391,18.46386268,200.09,200.05,0.03]
[1739123186566,14.96546268,200.08,200.05,0.03]
[1739123187590,14.96546268,200.09,200.05,0.03]
[1739123189108,14.96546268,200.08,200.05,0.03]
[1739123190209,14.96546268,200.09,200.05,0.03]
[1739123191116,14.96546268,200.08,200.05,0.03]
[1739123193609,14.96546268,200.11,200.05,0.03]
[1739123193793,14.96546268,200.12,200.05,14.99546268]
[1739123193984,14.96546268,200.11,200.05,0.03]
[1739123194202,13.41184853,200.1,200.05,0.03]
[1739123194894,14.96546268,200.12,200.05,14.99546268]
[1739123195092,95.96546268,200.14,200.07,14.96546268]
[1739123195297,81.0,200.14,200.08,14.96546268]
[1739123195501,28.37731121,200.13,200.06,14.96546268]
[1739123195698,14.96546268,200.12,200.05,18.49436268]
[1739123196006,28.37731121,200.13,200.06,14.96546268]
[1739123196587,95.96546268,200.14,200.07,18.46416268]
[1739123196816,81.0,200.14,200.09,14.96546268]
[1739123197014,80.95980935,200.14,200.08,14.96546268]
[1739123197198,14.96546268,200.15,200.08,14.96546268]
[1739123197602,14.96546268,200.17,200.1,14.96546268]
[1739123198024,0.063,200.14,200.1,14.96546268]
[1739123198319,0.063,200.14,200.08,16.56936268]
[1739123198793,0.063,200.14,200.09,18.46386268]
[1739123198991,0.063,200.14,200.1,14.96546268]
[1739123199934,0.063,200.14,200.11,14.96546268]
[1739123200128,0.063,200.14,200.13,14.96546268]
[1739123200440,0.063,200.14,200.11,14.96546268]
[1739123201444,0.063,200.14,200.11,18.46346268]
[1739123202514,0.063,200.14,200.13,14.96546268]
[1739123203423,0.063,200.14,200.13,18.46316268]
[1739123204216,0.063,200.14,200.12,14.96546268]
[1739123204415,0.063,200.14,200.11,14.96546268]
[1739123204932,0.063,200.14,200.1,14.96546268]
[1739123205131,14.96546268,200.13,200.08,1.6039]
[1739123205332,14.96546268,200.12,200.05,18.49436268]
[1739123205531,14.96546268,200.1,200.05,0.03]
[1739123206334,14.96546268,200.09,200.05,0.03]
[1739123206535,14.96546268,200.06,200.05,0.03]
[1739123209039,14.96546268,200.07,200.05,0.03]
[1739123209214,14.96546268,200.06,200.05,0.03]
[1739123209413,18.46436268,200.06,200.05,0.03]
[1739123209718,31.87621121,200.06,200.05,0.03]
[1739123210222,31.93921121,200.06,200.05,0.03]
[1739123218739,0.063,200.06,200.05,0.03]
[1739123219148,16.97374853,200.06,200.05,0.03]
[1739123219451,31.93921121,200.06,200.05,0.03]
[1739123222947,15.02846268,200.06,200.05,0.03]
[1739123223325,28.44031121,200.06,200.05,0.03]
[1739123223525,31.93921121,200.06,200.05,0.03]
[1739123225331,39.92231121,200.06,200.05,0.03]
[1739123225939,40.92231121,200.06,200.05,0.03]
[1739123226247,13.41184853,200.05,199.93,0.03]
[1739123226440,14.96546268,199.97,199.93,0.03]
[1739123226834,14.96546268,199.95,199.93,0.03]
[1739123227042,14.96546268,199.94,199.93,0.03]
[1739123228130,14.96546268,199.96,199.93,0.03]
[1739123228335,14.96546268,199.97,199.93,0.03]
[1739123228736,14.96546268,199.98,199.93,0.03]
[1739123229060,28.37731121,200.0,199.93,14.99546268]
[1739123229235,14.96546268,199.99,199.93,18.49656268]
[1739123229434,14.96546268,200.02,199.95,14.96546268]
[1739123229646,14.96546268,200.02,199.96,14.96546268]
[1739123229831,14.96546268,200.05,199.99,14.96546268]
[1739123230034,14.96546268,200.05,199.98,14.96546268]
[1739123230257,14.96546268,200.05,199.99,14.96546268]
[1739123230434,15.02846268,200.06,200.0,14.96546268]
[1739123230650,0.063,200.06,200.01,14.96546268]
[1739123231559,0.063,200.06,200.01,18.46506268]
[1739123232156,0.063,200.06,200.05,14.96546268]
[1739123232960,0.063,200.06,200.04,14.96546268]
[1739123233261,0.063,200.06,200.02,7.6743]
[1739123233262,0.063,200.06,200.03,14.96546268]
[1739123233465,0.063,200.06,200.03,18.46476268]
[1739123234136,0.063,200.06,199.97,0.74990419]
[1739123234137,14.96546268,200.05,199.98,14.96546268]
[1739123234449,14.96546268,200.05,200.04,0.03]
[1739123235349,15.02846268,200.06,200.04,0.03]
[1739123235547,0.063,200.06,200.04,0.03]
[1739123236861,0.063,200.06,200.04,14.99546268]
[1739123237457,0.063,200.06,200.04,18.49466268]
[1739123237635,0.063,200.06,200.04,0.03]
[1739123238436,0.063,200.06,200.04,3.5292]
[1739123238638,0.063,200.06,200.05,14.96546268]
[1739123239752,0.063,200.06,200.05,20.05546268]
[1739123240940,0.063,200.06,200.05,5.09]
[1739123241158,0.063,200.06,200.05,20.05546268]
[1739123242460,0.063,200.06,200.05,1.5909]
[1739123242844,0.063,200.06,200.05,16.55636268]
[1739123243044,0.063,200.06,200.05,26.61996268]
[1739123251249,0.063,200.06,200.05,23.12086268]
[1739123251449,0.063,200.06,200.05,14.96546268]
[1739123252057,0.063,200.06,200.04,3.5292]
[1739123252058,0.063,200.06,200.04,0.03]
[1739123253864,0.063,200.06,200.05,14.96546268]
[1739123254574,0.063,200.06,200.05,18.46456268]
[1739123255555,0.063,200.06,200.05,19.46456268]
[1739123255760,0.063,200.14,200.05,44.17782536]
[1739123255948,0.063,200.14,200.13,14.96546268]
[1739123256571,0.063,200.14,200.12,14.96546268]
[1739123257570,0.063,200.14,200.13,14.96546268]
[1739123260781,0.063,200.14,200.13,16.71468415]
[1739123261366,0.063,200.14,200.13,20.21238415]
[1739123262684,0.063,200.14,200.12,14.96546268]
[1739123262869,0.063,200.14,200.11,18.46346268]
[1739123263265,0.063,200.14,200.12,14.96546268]
[1739123263681,0.063,200.14,200.13,14.96546268]
[1739123266680,0.063,200.14,200.13,18.46316268]
[1739123268062,0.063,200.14,200.11,14.96546268]
[1739123268261,0.063,200.14,200.09,14.96546268]
[1739123269083,0.063,200.14,200.1,14.96546268]
[1739123270070,0.063,200.14,200.08,14.96546268]
[1739123270876,14.96546268,200.13,200.06,14.96546268]
[1739123271565,15.02846268,200.14,200.07,14.96546268]
[1739123271760,0.063,200.14,200.09,14.96546268]
[1739123273592,0.063,200.14,200.08,14.96546268]
[1739123273963,0.063,200.14,200.07,18.46406268]
[1739123274275,0.063,200.14,200.07,14.96546268]
[1739123274475,0.063,200.14,200.07,18.46416268]
[1739123274673,0.063,200.14,200.08,14.96546268]
[1739123276365,0.063,200.14,200.08,18.46396268]
[1739123277072,1.5919,200.13,200.06,18.46426268]
[1739123277266,14.96546268,200.1,200.05,0.03]
[1739123277468,14.96546268,200.09,200.05,0.03]
[1739123278086,14.96546268,200.1,200.05,0.03]
[1739123278290,14.96546268,200.11,200.05,0.03]
[1739123278596,26.19036268,200.13,200.05,18.49456268]
[1739123279500,1.5919,200.13,200.07,14.96546268]
[1739123279700,16.55736268,200.13,200.06,14.96546268]
[1739123280796,16.55736268,200.13,200.06,3.4989]
[1739123282503,1.5919,200.13,200.06,3.4989]
[1739123282684,1.5919,200.13,200.05,0.03]
[1739123282685,14.96546268,200.09,200.05,0.03]
[1739123283010,14.96546268,200.08,200.05,0.03]
[1739123283498,14.96546268,200.06,200.05,0.03]
[1739123283999,28.37731121,200.06,200.05,0.03]
[1739123284690,31.87621121,200.06,200.05,0.03]
[1739123284902,33.50631121,200.06,200.05,0.03]
[1739123285201,13.41184853,200.05,200.04,0.01980934]
[1739123285379,28.37731121,200.05,200.04,0.01980934]
[1739123285992,14.96546268,200.05,200.04,0.01980934]
[1739123286675,16.59556268,200.06,200.04,0.01980934]
[1739123287082,20.09446268,200.06,200.04,0.01980934]
[1739123287698,16.59556268,200.06,200.04,0.01980934]
[1739123288395,20.09446268,200.06,200.04,0.01980934]
[1739123288985,14.96546268,200.05,200.04,0.01980934]
[1739123289789,16.59556268,200.06,200.04,0.01980934]
[1739123290002,16.91054853,200.08,200.04,0.01980934]
[1739123290202,14.96546268,200.07,200.04,0.01980934]
[1739123291204,31.87601121,200.08,200.04,0.01980934]
[1739123292212,14.96546268,200.1,200.04,0.01980934]
[1739123292817,20.09356268,200.11,200.04,14.98527202]
[1739123293185,14.96546268,200.1,200.04,0.01980934]
[1739123293682,14.96546268,200.07,200.04,0.01980934]
[1739123293986,14.96546268,200.06,200.04,0.01980934]
[1739123294396,14.96546268,200.07,200.04,0.01980934]
[1739123294602,1.6301,200.11,200.04,0.01980934]
[1739123294916,95.92527203,200.12,200.05,14.96546268]
[1739123295098,99.42317203,200.12,200.05,14.96546268]
[1739123295291,14.96546268,200.11,200.04,14.98527202]
[1739123295700,18.46356268,200.11,200.04,14.98527202]
[1739123295903,14.96546268,200.1,200.04,0.01980934]
[1739123297412,80.95980935,200.12,200.04,14.98527202]
[1739123297413,14.96546268,200.11,200.04,14.98527202]
[1739123297917,95.92527203,200.12,200.05,14.96546268]
[1739123298082,0.063,200.13,200.08,14.96546268]
[1739123299311,0.063,200.13,200.08,18.46386268]
[1739123299525,0.063,200.13,200.09,14.96546268]
[1739123301214,14.96546268,200.12,200.05,14.96546268]
[1739123301389,14.96546268,200.07,200.04,0.01980934]
[1739123301716,14.96546268,200.06,200.04,0.01980934]
[1739123302508,14.96546268,200.05,200.04,0.01980934]
[1739123304716,14.96546268,200.06,200.04,0.01980934]
[1739123304917,14.96546268,200.07,200.04,0.01980934]
[1739123305641,14.96546268,200.05,200.04,0.01980934]
[1739123306127,28.37731121,200.05,200.04,0.01980934]
[1739123307418,31.87641121,200.05,200.04,0.01980934]
[1739123310425,28.37731121,200.05,200.04,0.01980934]
[1739123311135,13.41184853,200.05,200.04,0.01980934]
[1739123311627,31.87641121,200.05,200.04,0.01980934]
[1739123311833,14.96546268,200.05,200.04,0.01980934]
[1739123312731,28.37731121,200.06,200.04,0.01980934]
[1739123313027,14.96546268,200.06,200.04,0.01980934]
[1739123313411,14.96546268,200.07,200.04,0.01980934]
[1739123314527,14.96546268,200.05,200.04,0.01980934]
[1739123314732,28.37731121,200.05,200.04,0.01980934]
[1739123315027,31.87641121,200.05,200.04,0.01980934]
[1739123316130,14.96546268,200.05,200.04,0.01980934]
[1739123316328,18.46346268,200.11,200.04,14.98527202]
[1739123316710,3.498,200.11,200.05,14.96546268]
[1739123317330,84.52060935,200.13,200.07,14.96546268]
[1739123317511,0.063,200.13,200.08,14.96546268]
[1739123317833,0.063,200.13,200.09,14.96546268]
[1739123318420,0.063,200.13,200.08,14.96546268]
[1739123318624,0.063,200.13,200.09,14.96546268]
[1739123318829,0.063,200.13,200.1,14.96546268]
[1739123319132,0.063,200.13,200.08,14.96546268]
[1739123319729,13.47484853,200.13,200.07,14.96546268]
[1739123319929,14.96546268,200.12,200.05,14.96546268]
[1739123320107,14.96546268,200.1,200.04,0.01980934]
[1739123320313,0.063,200.13,200.07,14.96546268]
[1739123320519,13.47484853,200.13,200.07,14.96546268]
[1739123320845,0.063,200.13,200.09,14.96546268]
[1739123321215,0.063,200.13,200.08,14.96546268]
[1739123322547,0.063,200.13,200.07,14.96546268]
[1739123323523,28.44031121,200.13,200.06,14.96546268]
[1739123323730,14.96546268,200.12,200.05,14.96546268]
[1739123323921,14.96546268,200.11,200.04,14.98527202]
[1739123324419,14.96546268,200.1,200.04,0.01980934]
[1739123325216,3.4983,200.1,200.04,14.98527202]
[1739123326510,14.96546268,200.11,200.04,14.98527202]
[1739123326736,3.498,200.11,200.05,14.96546268]
[1739123326935,13.41184853,200.12,200.06,14.96546268]
[1739123327238,0.063,200.13,200.08,14.96546268]
[1739123327935,0.063,200.13,200.12,14.96546268]
[1739123328427,0.063,200.13,200.09,14.96546268]
[1739123329731,0.063,200.13,200.08,14.96546268]
[1739123330041,0.063,200.11,200.08,14.96546268]
[1739123330815,0.063,200.11,200.09,14.96546268]
[1739123331044,0.063,200.11,200.1,14.96546268]
[1739123333341,0.063,200.11,200.08,14.96546268]
[1739123333542,0.063,200.11,200.07,14.96546268]
[1739123333846,0.063,200.11,200.08,14.96546268]
[1739123337450,0.063,200.11,200.09,14.96546268]
[1739123337823,0.063,200.11,200.1,14.96546268]
[1739123339721,0.063,200.11,200.1,18.46366268]
[1739123341138,0.063,200.11,200.1,19.99316268]
[1739123342458,0.063,200.11,200.1,18.46366268]
[1739123345054,0.063,200.11,200.1,33.42912536]
[1739123345260,0.063,200.11,200.1,41.28337764]
[1739123345644,0.063,200.11,200.1,54.69522617]
[1739123345957,0.063,200.13,200.12,2.0]
[1739123346155,0.063,200.13,200.12,31.12648367]
[1739123346336,0.063,200.13,200.12,30.12648367]
[1739123346539,0.063,200.13,200.12,29.12648367]
[1739123346850,0.063,200.13,200.12,30.12648367]
[1739123347054,0.063,200.13,200.12,18.46336268]
[1739123347955,0.063,200.13,200.12,38.46336268]
[1739123348139,0.063,200.13,200.12,18.46336268]
[1739123348341,0.063,200.13,200.11,7.238]
[1739123348549,0.063,200.13,200.11,22.20346268]
[1739123348749,0.063,200.13,200.12,14.96546268]
[1739123349148,0.063,200.13,200.12,18.46336268]
[1739123349349,0.063,200.13,200.11,22.20346268]
[1739123350860,0.063,200.13,200.08,3.4986]
[1739123350861,15.02846268,200.13,200.08,3.4986]
[1739123351157,14.96546268,200.11,200.06,3.4988]
[1739123351361,14.96546268,200.12,200.06,3.4988]
[1739123351539,0.063,200.13,200.09,14.96546268]
[1739123351864,0.063,200.13,200.11,14.96546268]
[1739123352255,0.063,200.13,200.1,14.96546268]
[1739123352448,0.063,200.13,200.09,14.96546268]
[1739123352649,0.063,200.13,200.08,14.96546268]
[1739123352945,0.063,200.13,200.08,18.46386268]
[1739123353259,0.063,200.13,200.09,14.96546268]
[1739123353760,0.063,200.13,200.1,14.96546268]
[1739123354458,0.063,200.13,200.11,14.96546268]
[1739123355165,0.063,200.13,200.12,14.96546268]
[1739123355466,0.063,200.13,200.11,14.96546268]
[1739123356267,0.063,200.13,200.12,14.96546268]
[1739123356637,0.063,200.13,200.1,14.96546268]
[1739123359065,0.063,200.13,200.11,3.498]
[1739123360971,0.063,200.13,200.09,3.4983]
[1739123361151,0.063,200.13,200.05,14.96546268]
[1739123361349,15.02846268,200.13,200.05,18.46456268]
[1739123362067,14.96546268,200.1,200.04,3.51900934]
[1739123362258,14.96546268,200.08,200.04,0.01980934]
[1739123362566,14.96546268,200.06,200.04,0.01980934]
[1739123363368,14.96546268,200.07,200.04,0.01980934]
[1739123364770,14.96546268,200.09,200.04,0.01980934]
[1739123365087,16.60696268,200.11,200.1,0.03]
[1739123366467,1.6415,200.11,200.1,0.03]
[1739123366860,102.03877203,200.13,200.1,0.03]
[1739123366861,87.07330935,200.13,200.1,0.03]
[1739123367257,81.02280935,200.13,200.1,0.03]
[1739123367877,0.063,200.13,200.1,0.03]
[1739123369171,14.96546268,200.12,200.1,0.03]
[1739123371669,0.063,200.13,200.1,0.03]
[1739123372373,18.52616268,200.13,200.1,0.03]
[1739123372758,0.063,200.13,200.1,0.03]
[1739123373750,0.063,200.13,200.11,14.96546268]
[1739123374884,0.063,200.13,200.1,14.99546268]
[1739123376574,0.063,200.13,200.1,0.03]
[1739123377862,0.063,200.13,200.1,3.5282]
[1739123378158,0.063,200.13,200.1,18.49366268]
[1739123378772,0.063,200.13,200.1,0.03]
[1739123379382,14.96546268,200.11,200.1,0.03]
[1739123379675,13.41184853,200.1,200.04,0.01980934]
[1739123379881,14.96546268,200.05,200.04,0.01980934]
[1739123380782,18.46456268,200.05,200.04,0.01980934]
[1739123381293,14.96546268,200.06,200.04,0.01980934]
[1739123381650,14.96546268,200.05,200.04,0.01980934]
[1739123384187,29.37731121,200.05,200.04,0.01980934]
[1739123384371,1.5068,200.03,199.93,0.03]
[1739123384681,14.96546268,199.94,199.93,0.03]
[1739123389584,14.96546268,199.96,199.93,0.03]
[1739123389891,14.96546268,199.97,199.93,0.03]
[1739123390185,14.96546268,199.96,199.93,0.03]
[1739123392666,14.96546268,199.95,199.93,0.03]
[1739123395285,14.96546268,199.96,199.93,0.03]
[1739123395471,14.96546268,199.97,199.93,0.03]
[1739123396193,14.96546268,199.96,199.93,0.03]
[1739123396391,14.96546268,199.98,199.93,0.03]
[1739123396589,14.96546268,199.99,199.93,0.03]
[1739123396972,14.96546268,199.98,199.93,0.03]
[1739123397499,14.96546268,199.97,199.93,0.03]
[1739123400492,14.96546268,199.99,199.93,14.99546268]
[1739123400704,14.96546268,199.98,199.93,0.03]
[1739123400876,14.96546268,199.97,199.93,0.03]
[1739123401288,14.96546268,199.96,199.93,0.03]
[1739123401480,14.96546268,199.97,199.93,0.03]
[1739123401895,14.96546268,199.99,199.93,0.03]
[1739123402897,14.96546268,199.97,199.93,0.03]
[1739123403408,14.96546268,199.98,199.93,0.03]
[1739123405072,0.063,200.04,199.97,14.96546268]
[1739123405692,0.063,200.04,199.98,14.96546268]
[1739123406486,14.96546268,200.03,199.97,14.96546268]
[1739123407082,14.96546268,200.03,199.98,3.5003]
[1739123408016,14.96546268,200.03,199.96,14.96546268]
[1739123408017,14.96546268,200.03,199.97,14.96546268]
[1739123408191,15.02846268,200.04,199.97,14.96546268]
[1739123408596,0.063,200.04,199.98,14.96546268]
[1739123408903,0.063,200.04,200.01,14.96546268]
[1739123409298,0.063,200.04,200.02,14.96546268]
[1739123410307,0.063,200.04,200.03,31.87671121]
[1739123410491,0.063,200.13,200.08,14.96546268]
[1739123410692,14.96546268,200.12,200.05,14.96546268]
[1739123410889,14.96546268,200.11,200.04,14.96546268]
[1739123411089,14.96546268,200.09,200.03,12.248]
[1739123412408,0.063,200.04,200.03,12.248]
[1739123413317,0.063,200.04,200.03,27.9630476]
[1739123415309,0.063,200.04,200.03,41.37489613]
[1739123416991,0.063,200.13,200.06,22.0]
[1739123417201,0.063,200.13,200.09,14.96546268]
[1739123418604,0.063,200.13,200.1,3.4982]
[1739123418801,0.063,200.13,200.1,18.46366268]
[1739123419115,0.063,200.13,200.12,34.96546268]
[1739123419503,0.063,200.13,200.12,43.74044686]
[1739123419704,0.063,200.13,200.12,40.99116268]
[1739123419907,0.063,200.13,200.12,26.0257]
[1739123420303,0.063,200.13,200.12,40.99116268]
[1739123421014,0.063,200.13,200.09,14.96546268]
[1739123421224,0.063,200.13,200.1,3.498]
[1739123424099,0.063,200.13,200.1,14.96546268]
[1739123425817,0.063,200.13,200.11,14.96546268]
[1739123426006,0.063,200.13,200.12,3.4979]
[1739123427714,15.02846268,200.13,200.1,3.498]
[1739123428414,0.063,200.13,200.1,3.498]
[1739123430421,13.59146268,200.15,200.1,3.498]
[1739123433416,14.96546268,200.16,200.1,3.498]
[1739123434207,14.96546268,200.18,200.11,14.96546268]
[1739123434416,14.96546268,200.19,200.12,14.96546268]
[1739123434716,14.96546268,200.18,200.11,14.96546268]
[1739123435121,14.96546268,200.17,200.11,14.96546268]
[1739123435508,14.96546268,200.17,200.1,27.95833597]
[1739123435705,14.96546268,200.17,200.1,27.98833597]
[1739123436009,0.063,200.15,200.1,27.98833597]
[1739123436824,14.96546268,200.14,200.1,3.528]
[1739123439915,15.02846268,200.15,200.1,3.528]
[1739123440126,0.063,200.15,200.11,14.96546268]
[1739123440330,0.063,200.15,200.12,14.96546268]
[1739123440632,0.063,200.15,200.1,19.24275955]
[1739123440818,15.02846268,200.15,200.1,3.528]
[1739123441417,0.063,200.15,200.1,3.528]
[1739123441620,15.02846268,200.15,200.1,20.03]
[1739123442436,0.063,200.15,200.1,20.03]
[1739123442611,0.063,200.15,200.1,34.99546268]
[1739123442811,0.063,200.15,200.1,20.03]
[1739123444442,0.063,200.15,200.1,34.99546268]
[1739123444634,0.063,200.15,200.11,18.46346268]
[1739123445119,0.063,200.15,200.13,14.96546268]
[1739123445322,0.063,200.15,200.12,15.71476916]
[1739123445640,0.063,200.15,200.12,14.96546268]
[1739123446131,0.063,200.15,200.11,27.95779636]
[1739123446519,0.063,200.15,200.11,27.20856268]
[1739123447638,0.063,200.15,200.11,21.83087318]
[1739123449439,0.063,200.15,200.11,21.86087318]
[1739123451550,0.063,200.15,200.13,3.4977]
[1739123451912,0.063,200.15,200.13,13.08547318]
[1739123453318,0.063,200.15,200.14,29.58777318]
[1739123453519,0.063,200.15,200.14,20.0]
[1739123453743,0.063,200.15,200.14,23.4975]
[1739123454045,0.063,200.15,200.14,33.08527318]
[1739123454428,0.063,200.23,200.19,13.41184853]
[1739123454629,0.063,200.23,200.22,9.58777318]
[1739123455643,0.063,200.23,200.22,13.08387318]
[1739123457760,0.063,200.23,200.22,27.24462027]
[1739123460264,0.063,200.23,200.22,13.83277174]
[1739123460562,0.063,200.23,200.22,3.4961]
[1739123460935,0.02281558,200.23,200.22,3.4961]
[1739123461366,0.02281558,200.23,200.22,13.08387318]
[1739123462877,0.02281558,200.23,200.22,28.24465401]
[1739123463093,0.02281558,200.23,200.22,27.24465401]
[1739123463272,0.02281558,200.23,200.22,13.08387318]
[1739123465685,0.02281558,200.23,200.2,0.74885475]
[1739123465862,0.02281558,200.23,200.11,1.03]
[1739123465863,9.58777318,200.21,200.14,3.4975]
[1739123466191,9.58777318,200.19,200.14,3.4975]
[1739123466785,9.58777318,200.19,200.12,9.58777318]
[1739123466990,9.58777318,200.2,200.13,29.58777318]
[1739123468077,9.58777318,200.2,200.14,3.4975]
[1739123468466,9.58777318,200.19,200.14,3.4975]
[1739123469590,14.97897577,200.19,200.14,3.4975]
[1739123471987,14.97897577,200.2,200.14,3.4975]
[1739123472572,14.97897577,200.19,200.14,3.4975]
[1739123473574,14.97897577,200.2,200.14,3.4975]
[1739123474191,14.97897577,200.2,200.14,18.47647577]
[1739123474980,14.97897577,200.2,200.14,18.50647577]
[1739123476707,14.97897577,200.17,200.14,0.03]
[1739123477112,14.97897577,200.16,200.14,0.03]
[1739123477820,14.97897577,200.17,200.14,0.03]
[1739123477983,14.97897577,200.15,200.14,0.03]
[1739123479219,14.97897577,200.15,200.11,0.03]
[1739123479423,1.5349,200.16,200.11,0.03]
[1739123479424,14.97897577,200.12,200.11,0.03]
[1739123480196,18.47687577,200.12,200.11,0.03]
[1739123481493,14.97897577,200.12,200.11,0.03]
[1739123481694,14.97897577,200.13,200.11,0.03]
[1739123481912,95.97897577,200.14,200.11,0.03]
[1739123482699,14.97897577,200.12,200.11,0.03]
[1739123484708,18.47687577,200.12,200.11,0.03]
[1739123491815,13.0946209,200.12,200.11,0.03]
[1739123502828,64.89335303,200.12,200.11,0.03]
[1739123503748,64.89335303,200.12,200.1,0.03]
[1739123504034,47.9836045,200.11,200.1,0.03]
[1739123504819,13.41184853,200.1,200.03,0.03]
[1739123505125,9.5967209,200.04,200.03,0.03]
[1739123506335,13.0960209,200.04,200.03,0.03]
[1739123507828,26.50786943,200.04,200.03,0.03]
[1739123508035,1.0,200.02,199.93,0.03]
[1739123508337,9.5967209,199.95,199.93,0.03]
[1739123509233,9.5967209,199.97,199.93,0.03]
[1739123509934,9.5967209,199.98,199.93,0.03]
[1739123510648,90.5967209,200.0,199.94,9.5967209]
[1739123511525,90.5967209,200.0,199.93,0.03]
[1739123511526,9.5967209,199.99,199.93,0.03]
[1739123511727,15.01031094,199.99,199.93,0.03]
[1739123513540,15.01031094,199.98,199.93,0.03]
[1739123514847,15.01031094,199.99,199.93,0.03]
[1739123515635,15.01031094,199.99,199.92,15.00012651]
[1739123515847,15.01031094,200.03,199.96,15.01031094]
[1739123516660,0.063,200.04,200.01,15.01031094]
[1739123516826,0.063,200.04,200.02,15.01031094]
[1739123517034,0.063,200.04,200.0,18.51011094]
[1739123517631,0.063,200.04,200.03,15.01031094]
[1739123519552,0.063,200.04,200.03,18.50971094]
[1739123520754,0.063,200.04,200.0,9.49973014]
[1739123520755,0.063,200.04,200.02,15.01031094]
[1739123521054,0.063,200.04,200.0,15.01031094]
[1739123521435,0.063,200.04,200.01,15.01031094]
[1739123522241,0.063,200.04,200.02,18.50991094]
[1739123522859,0.063,200.04,200.03,15.01031094]
[1739123523835,0.063,200.04,200.03,29.17180577]
[1739123524039,0.063,200.04,200.03,32.67120577]
[1739123524438,0.063,200.04,200.03,33.67120577]
[1739123524660,0.063,200.04,200.03,41.85880577]
[1739123526066,0.063,200.14,200.03,41.85880577]
[1739123526067,0.063,200.14,200.1,20.0]
[1739123526254,0.063,200.14,200.13,15.01031094]
[1739123527867,0.063,200.14,200.13,18.50801094]
[1739123528664,0.063,200.14,200.13,15.01031094]
[1739123529366,0.063,200.14,200.13,18.50801094]
[1739123529873,0.063,200.14,200.13,15.01031094]
[1739123531269,0.063,200.14,200.13,18.50801094]
[1739123533374,15.07331094,200.14,200.07,15.01031094]
[1739123533550,15.01031094,200.1,200.03,21.56741094]
[1739123533880,0.063,200.14,200.03,15.01031094]
[1739123534049,0.063,200.14,200.03,15.16147795]
[1739123535171,0.063,200.14,200.08,15.01031094]
[1739123536674,0.063,200.14,200.09,15.01031094]
[1739123537962,0.063,200.14,200.08,18.50881094]